[Event "Titled Tuesday Blitz June 21 Early 2022"]
[White "Mahdavi, Reza"]
[Black "Xu, Yi"]
[WhiteFideId "12595926"]
[BlackFideId "8605564"]
[WhiteElo "2265"]
[BlackElo "2471"]
[Result "0-1"]
[Round "08"]
[TimeControl "180+1"]
[Date "2022.06.21"]
[WhiteClock "0:00:02"]
[BlackClock "0:00:05"]

1. e4 {[%clk 0:03:00]}  c5 {[%clk 0:02:58]} 2. Nf3 {[%clk 0:03:00]}  d6 {[%clk 0:02:58]} 3. Bb5+ {[%clk 0:03:01]}  Nd7 {[%clk 0:02:58]} 4. c3 {[%clk 0:03:01]}  a6 {[%clk 0:02:50]} 5. Ba4 {[%clk 0:03:01]}  b5 {[%clk 0:02:45]} 6. Bc2 {[%clk 0:03:01]}  Ngf6 {[%clk 0:02:39]} 7. d4 {[%clk 0:03:01]}  e6 {[%clk 0:02:37]} 8. O-O {[%clk 0:03:01]}  Be7 {[%clk 0:02:36]} 9. Qe2 {[%clk 0:03:01]}  Bb7 {[%clk 0:02:33]} 10. Re1 {[%clk 0:03:00]}  e5 {[%clk 0:02:30]} 11. dxe5 {[%clk 0:02:52]}  dxe5 {[%clk 0:02:29]} 12. a4 {[%clk 0:02:52]}  b4 {[%clk 0:02:22]} 13. Nbd2 {[%clk 0:02:48]}  O-O {[%clk 0:02:21]} 14. Nc4 {[%clk 0:02:48]}  Qc7 {[%clk 0:02:21]} 15. a5 {[%clk 0:02:47]}  Bc6 {[%clk 0:02:18]} 16. Bg5 {[%clk 0:02:43]}  Rfe8 {[%clk 0:02:08]} 17. Bh4 {[%clk 0:02:41]}  Nh5 {[%clk 0:02:06]} 18. Bxe7 {[%clk 0:02:39]}  Rxe7 {[%clk 0:02:03]} 19. g3 {[%clk 0:02:36]}  Nhf6 {[%clk 0:01:59]} 20. Rad1 {[%clk 0:02:18]}  Bb5 {[%clk 0:01:49]} 21. Bd3 {[%clk 0:02:18]}  bxc3 {[%clk 0:01:46]} 22. bxc3 {[%clk 0:02:16]}  Bxc4 {[%clk 0:01:47]} 23. Bxc4 {[%clk 0:02:17]}  Qxa5 {[%clk 0:01:47]} 24. Qe3 {[%clk 0:02:08]}  Qc7 {[%clk 0:01:42]} 25. Ra1 {[%clk 0:01:51]}  a5 {[%clk 0:01:42]} 26. Red1 {[%clk 0:01:46]}  Nb6 {[%clk 0:01:41]} 27. Bb5 {[%clk 0:01:44]}  a4 {[%clk 0:01:32]} 28. Ra3 {[%clk 0:01:18]}  Ne8 {[%clk 0:01:18]} 29. Bxe8 {[%clk 0:01:14]}  Rexe8 {[%clk 0:01:17]} 30. Qe2 {[%clk 0:01:08]}  Red8 {[%clk 0:01:13]} 31. Rda1 {[%clk 0:01:07]}  c4 {[%clk 0:01:10]} 32. Ne1 {[%clk 0:00:59]}  Qc5 {[%clk 0:01:07]} 33. Nc2 {[%clk 0:00:59]}  Rd6 {[%clk 0:01:00]} 34. Ne3 {[%clk 0:00:53]}  Rad8 {[%clk 0:00:52]} 35. h4 {[%clk 0:00:43]}  Rd2 {[%clk 0:00:50]} 36. Qf3 {[%clk 0:00:41]}  g6 {[%clk 0:00:37]} 37. h5 {[%clk 0:00:38]}  Qe7 {[%clk 0:00:35]} 38. Rb1 {[%clk 0:00:37]}  R8d6 {[%clk 0:00:34]} 39. h6 {[%clk 0:00:32]}  Rf6 {[%clk 0:00:23]} 40. Nf5 {[%clk 0:00:16]}  gxf5 {[%clk 0:00:20]} 41. Qe3 {[%clk 0:00:15]}  Qxa3 {[%clk 0:00:18]} 42. Qxd2 {[%clk 0:00:13]}  Qf8 {[%clk 0:00:17]} 43. exf5 {[%clk 0:00:09]}  Qxh6 {[%clk 0:00:17]} 44. Qd8+ {[%clk 0:00:09]}  Kg7 {[%clk 0:00:17]} 45. Qe7 {[%clk 0:00:05]}  Qd2 {[%clk 0:00:10]} 46. Qxe5 {[%clk 0:00:04]}  Qd5 {[%clk 0:00:09]} 47. Qe3 {[%clk 0:00:02]}  Qxf5 {[%clk 0:00:07]} 48. Rxb6 {[%clk 0:00:02]}  Rxb6 {[%clk 0:00:07]} 49. Qxb6 {[%clk 0:00:03]}  Qd3 {[%clk 0:00:06]} 50. Qa7 {[%clk 0:00:03]}  Qxc3 {[%clk 0:00:06]} 51. Qxa4 {[%clk 0:00:03]}  Qd3 {[%clk 0:00:06]} 52. Qa5 {[%clk 0:00:02]}  Kf6 {[%clk 0:00:03]} 53. Qb6+ {[%clk 0:00:02]}  Ke5 {[%clk 0:00:03]} 54. Qc5+ {[%clk 0:00:01]}  Ke6 {[%clk 0:00:03]} 55. Qc6+ {[%clk 0:00:02]}  Ke5 {[%clk 0:00:03]} 56. Qc5+ {[%clk 0:00:02]}  Ke4 {[%clk 0:00:03]} 57. Qc6+ {[%clk 0:00:03]}  Kd4 {[%clk 0:00:03]} 58. Qf6+ {[%clk 0:00:03]}  Kc5 {[%clk 0:00:03]} 59. Qxf7 {[%clk 0:00:03]}  c3 {[%clk 0:00:04]} 60. Qc7+ {[%clk 0:00:03]}  Kb4 {[%clk 0:00:04]} 61. Qb6+ {[%clk 0:00:04]}  Ka3 {[%clk 0:00:05]} 62. Qa5+ {[%clk 0:00:04]}  Kb2 {[%clk 0:00:05]} 63. Qb4+ {[%clk 0:00:05]}  Kc1 {[%clk 0:00:06]} 64. Qf4+ {[%clk 0:00:04]}  Qd2 {[%clk 0:00:06]} 65. Qb4 {[%clk 0:00:04]}  c2 {[%clk 0:00:06]} 66. Qa3+ {[%clk 0:00:04]}  Kd1 {[%clk 0:00:06]} 67. Qf3+ {[%clk 0:00:05]}  Qe2 {[%clk 0:00:04]} 68. Qd5+ {[%clk 0:00:05]}  Ke1 {[%clk 0:00:05]} 69. Qa5+ {[%clk 0:00:05]}  Qd2 {[%clk 0:00:04]} 70. Qe5+ {[%clk 0:00:05]}  Kd1 {[%clk 0:00:04]} 71. Qh5+ {[%clk 0:00:04]}  Kc1 {[%clk 0:00:03]} 72. Qc5 {[%clk 0:00:03]}  Kb2 {[%clk 0:00:03]} 73. Qb5+ {[%clk 0:00:03]}  Ka3 {[%clk 0:00:03]} 74. Qa6+ {[%clk 0:00:02]}  Kb2 {[%clk 0:00:03]} 75. Qb5+ {[%clk 0:00:03]}  Kc1 {[%clk 0:00:04]} 76. Kg2 {[%clk 0:00:02]}  Qc3 {[%clk 0:00:04]} 77. Qg5+ {[%clk 0:00:02]}  Kb2 {[%clk 0:00:03]} 78. Qb5+ {[%clk 0:00:03]}  Qb3 {[%clk 0:00:04]} 79. Qe5+ {[%clk 0:00:03]}  Ka2 {[%clk 0:00:05]} 80. Qa5+ {[%clk 0:00:03]}  Kb1 {[%clk 0:00:05]} 81. Qf5 {[%clk 0:00:03]}  Qb7+ {[%clk 0:00:05]} 82. Kh2 {[%clk 0:00:03]}  Qb4 {[%clk 0:00:05]} 83. Qxh7 {[%clk 0:00:02]}  Qd2 {[%clk 0:00:05]} 84. Qb7+ {[%clk 0:00:02]}  Kc1 {[%clk 0:00:05]} 85. Qb3 {[%clk 0:00:02]}  Qxf2+ {[%clk 0:00:05]} 86. Kh3 {[%clk 0:00:03]}  Kd1 {[%clk 0:00:05]} 87. g4 {[%clk 0:00:02]}  Ke1 {[%clk 0:00:05]} 88. Qc3+ {[%clk 0:00:02]}  Kf1 {[%clk 0:00:05]} 89. Qd3+ {[%clk 0:00:02]}  Kg1 {[%clk 0:00:05]} 0-1


[Site "https://www.chess.com"]

[Event "Titled Tuesday Blitz June 21 Early 2022"]
[White "Malyi, Viacheslav"]
[Black "Yen, William"]
[WhiteFideId "14123983"]
[BlackFideId "30932025"]
[WhiteElo "2270"]
[BlackElo "1905"]
[Result "1-0"]
[Round "08"]
[TimeControl "180+1"]
[Date "2022.06.21"]
[WhiteClock "0:02:17"]
[BlackClock "0:01:17"]

1. e4 {[%clk 0:02:56]}  e6 {[%clk 0:02:59]} 2. d4 {[%clk 0:02:56]}  d5 {[%clk 0:03:00]} 3. Nc3 {[%clk 0:02:57]}  Bb4 {[%clk 0:02:58]} 4. e5 {[%clk 0:02:53]}  Qd7 {[%clk 0:02:56]} 5. a3 {[%clk 0:02:54]}  Bxc3+ {[%clk 0:02:53]} 6. bxc3 {[%clk 0:02:55]}  b6 {[%clk 0:02:52]} 7. Qg4 {[%clk 0:02:52]}  f5 {[%clk 0:02:49]} 8. exf6 {[%clk 0:02:51]}  Nxf6 {[%clk 0:02:48]} 9. Qh4 {[%clk 0:02:51]}  O-O {[%clk 0:02:41]} 10. Nf3 {[%clk 0:02:51]}  c5 {[%clk 0:02:40]} 11. Bd3 {[%clk 0:02:50]}  Ba6 {[%clk 0:02:38]} 12. O-O {[%clk 0:02:49]}  Bxd3 {[%clk 0:01:16]} 13. Ne5 {[%clk 0:02:24]}  cxd4 {[%clk 0:01:17]} 14. Nxd7 {[%clk 0:02:17]} 1-0


[Site "https://www.chess.com"]

[Event "Titled Tuesday Blitz June 21 Early 2022"]
[White "Mangialardo, Tiago Carvalho"]
[Black "Eggleston, Thomas A"]
[WhiteFideId "2130718"]
[BlackFideId "412139"]
[WhiteElo "2103"]
[BlackElo "2174"]
[Result "1/2-1/2"]
[Round "08"]
[TimeControl "180+1"]
[Date "2022.06.21"]
[WhiteClock "0:00:01"]
[BlackClock "0:00:23"]

1. e4 {[%clk 0:03:00]}  e6 {[%clk 0:02:59]} 2. d4 {[%clk 0:03:00]}  d5 {[%clk 0:03:00]} 3. exd5 {[%clk 0:03:01]}  exd5 {[%clk 0:03:00]} 4. Nf3 {[%clk 0:03:01]}  Nf6 {[%clk 0:02:59]} 5. Bd3 {[%clk 0:03:02]}  c5 {[%clk 0:02:58]} 6. c3 {[%clk 0:02:57]}  Bg4 {[%clk 0:02:56]} 7. O-O {[%clk 0:02:55]}  c4 {[%clk 0:02:47]} 8. Bc2 {[%clk 0:02:54]}  Be7 {[%clk 0:02:47]} 9. Bf4 {[%clk 0:02:48]}  O-O {[%clk 0:02:45]} 10. Nbd2 {[%clk 0:02:48]}  Nh5 {[%clk 0:02:40]} 11. Be3 {[%clk 0:02:43]}  Qc8 {[%clk 0:02:19]} 12. Re1 {[%clk 0:02:40]}  Nc6 {[%clk 0:02:14]} 13. Nf1 {[%clk 0:02:39]}  Bxf3 {[%clk 0:02:13]} 14. Qxf3 {[%clk 0:02:39]}  Nf6 {[%clk 0:02:07]} 15. Ng3 {[%clk 0:02:35]}  g6 {[%clk 0:02:06]} 16. Re2 {[%clk 0:02:27]}  Re8 {[%clk 0:02:06]} 17. Rae1 {[%clk 0:02:27]}  Qg4 {[%clk 0:02:00]} 18. Qxg4 {[%clk 0:01:57]}  Nxg4 {[%clk 0:02:00]} 19. Bg5 {[%clk 0:01:58]}  f6 {[%clk 0:01:49]} 20. Bd2 {[%clk 0:01:18]}  Kg7 {[%clk 0:01:49]} 21. Ba4 {[%clk 0:00:38]}  Kf7 {[%clk 0:01:30]} 22. h3 {[%clk 0:00:37]}  Nxf2 {[%clk 0:01:25]} 23. Kxf2 {[%clk 0:00:36]}  Bd6 {[%clk 0:01:24]} 24. Rxe8 {[%clk 0:00:33]}  Rxe8 {[%clk 0:01:23]} 25. Rxe8 {[%clk 0:00:34]}  Kxe8 {[%clk 0:01:23]} 26. Bxc6+ {[%clk 0:00:34]}  bxc6 {[%clk 0:01:24]} 27. Kf3 {[%clk 0:00:34]}  Kf7 {[%clk 0:01:24]} 28. Ne2 {[%clk 0:00:34]}  Ke6 {[%clk 0:01:24]} 29. Bf4 {[%clk 0:00:35]}  Be7 {[%clk 0:01:23]} 30. Bb8 {[%clk 0:00:31]}  a6 {[%clk 0:01:22]} 31. a4 {[%clk 0:00:31]}  c5 {[%clk 0:01:22]} 32. Ba7 {[%clk 0:00:28]}  cxd4 {[%clk 0:01:21]} 33. Nxd4+ {[%clk 0:00:29]}  Kd7 {[%clk 0:01:18]} 34. g4 {[%clk 0:00:27]}  Bd6 {[%clk 0:01:15]} 35. Bb6 {[%clk 0:00:18]}  Be5 {[%clk 0:01:14]} 36. Ne2 {[%clk 0:00:15]}  Bd6 {[%clk 0:01:13]} 37. Bd4 {[%clk 0:00:14]}  Ke6 {[%clk 0:01:12]} 38. Nf4+ {[%clk 0:00:14]}  Kf7 {[%clk 0:00:52]} 39. Nxd5 {[%clk 0:00:14]}  f5 {[%clk 0:00:52]} 40. Nb6 {[%clk 0:00:12]}  fxg4+ {[%clk 0:00:52]} 41. hxg4 {[%clk 0:00:13]}  h5 {[%clk 0:00:51]} 42. gxh5 {[%clk 0:00:12]}  gxh5 {[%clk 0:00:51]} 43. Nxc4 {[%clk 0:00:13]}  Bc7 {[%clk 0:00:52]} 44. Ne5+ {[%clk 0:00:12]}  Ke6 {[%clk 0:00:52]} 45. Nd3 {[%clk 0:00:09]}  h4 {[%clk 0:00:51]} 46. Kg4 {[%clk 0:00:08]}  Bd8 {[%clk 0:00:49]} 47. b4 {[%clk 0:00:08]}  Kd5 {[%clk 0:00:48]} 48. Nf4+ {[%clk 0:00:08]}  Kc4 {[%clk 0:00:47]} 49. Ng6 {[%clk 0:00:08]}  Kb3 {[%clk 0:00:47]} 50. Nxh4 {[%clk 0:00:08]}  Kxa4 {[%clk 0:00:47]} 51. Nf5 {[%clk 0:00:07]}  a5 {[%clk 0:00:46]} 52. bxa5 {[%clk 0:00:02]}  Kxa5 {[%clk 0:00:46]} 53. Kf4 {[%clk 0:00:03]}  Kb5 {[%clk 0:00:46]} 54. Ke5 {[%clk 0:00:03]}  Kc4 {[%clk 0:00:45]} 55. Nd6+ {[%clk 0:00:03]}  Kd3 {[%clk 0:00:41]} 56. Kd5 {[%clk 0:00:03]}  Ba5 {[%clk 0:00:40]} 57. c4 {[%clk 0:00:02]}  Bb4 {[%clk 0:00:40]} 58. Nb5 {[%clk 0:00:02]}  Ke2 {[%clk 0:00:38]} 59. Bc5 {[%clk 0:00:02]}  Bd2 {[%clk 0:00:37]} 60. Bd4 {[%clk 0:00:02]}  Bb4 {[%clk 0:00:37]} 61. Bc3 {[%clk 0:00:03]}  Be7 {[%clk 0:00:34]} 62. Nd6 {[%clk 0:00:03]}  Kd3 {[%clk 0:00:32]} 63. Be5 {[%clk 0:00:02]}  Bd8 {[%clk 0:00:30]} 64. c5 {[%clk 0:00:02]}  Ba5 {[%clk 0:00:25]} 65. c6 {[%clk 0:00:01]}  Bc7 {[%clk 0:00:23]} 1/2-1/2


[Site "https://www.chess.com"]

[Event "Titled Tuesday Blitz June 21 Early 2022"]
[White "Manukian, Artak"]
[Black "Kucuksari, Kaan"]
[WhiteFideId "13301373"]
[BlackFideId "6380166"]
[WhiteElo "2472"]
[BlackElo "2305"]
[Result "1-0"]
[Round "08"]
[TimeControl "180+1"]
[Date "2022.06.21"]
[WhiteClock "0:00:26"]
[BlackClock "0:00:09"]

1. e4 {[%clk 0:03:00]}  c6 {[%clk 0:02:58]} 2. d4 {[%clk 0:03:01]}  d5 {[%clk 0:02:58]} 3. e5 {[%clk 0:03:01]}  c5 {[%clk 0:02:57]} 4. dxc5 {[%clk 0:03:00]}  Nc6 {[%clk 0:02:57]} 5. Bb5 {[%clk 0:03:00]}  e6 {[%clk 0:02:54]} 6. b4 {[%clk 0:02:59]}  Ne7 {[%clk 0:02:52]} 7. Nf3 {[%clk 0:02:58]}  Bd7 {[%clk 0:02:52]} 8. a4 {[%clk 0:02:49]}  Nxb4 {[%clk 0:02:49]} 9. O-O {[%clk 0:02:44]}  Nec6 {[%clk 0:02:48]} 10. Be3 {[%clk 0:02:41]}  a5 {[%clk 0:02:47]} 11. c4 {[%clk 0:02:34]}  Be7 {[%clk 0:02:44]} 12. Nc3 {[%clk 0:02:32]}  dxc4 {[%clk 0:02:32]} 13. Bxc4 {[%clk 0:02:33]}  O-O {[%clk 0:02:33]} 14. Ne4 {[%clk 0:02:29]}  Nd5 {[%clk 0:02:29]} 15. Bxd5 {[%clk 0:02:24]}  exd5 {[%clk 0:02:29]} 16. Qxd5 {[%clk 0:02:24]}  Nb4 {[%clk 0:02:30]} 17. Qc4 {[%clk 0:02:21]}  Be6 {[%clk 0:02:29]} 18. Qb5 {[%clk 0:02:16]}  Bd7 {[%clk 0:02:29]} 19. Qc4 {[%clk 0:02:16]}  Be6 {[%clk 0:02:29]} 20. Qb5 {[%clk 0:02:16]}  Nc2 {[%clk 0:02:14]} 21. Rad1 {[%clk 0:02:12]}  Qc8 {[%clk 0:02:09]} 22. Nd6 {[%clk 0:02:11]}  Bxd6 {[%clk 0:02:00]} 23. cxd6 {[%clk 0:02:10]}  Nxe3 {[%clk 0:02:01]} 24. fxe3 {[%clk 0:02:10]}  Qc3 {[%clk 0:02:02]} 25. Rfe1 {[%clk 0:01:57]}  Qb4 {[%clk 0:01:57]} 26. Nd4 {[%clk 0:01:52]}  Rfc8 {[%clk 0:01:43]} 27. Nxe6 {[%clk 0:01:47]}  Qxb5 {[%clk 0:01:42]} 28. axb5 {[%clk 0:01:45]}  fxe6 {[%clk 0:01:43]} 29. Rc1 {[%clk 0:01:41]}  Kf7 {[%clk 0:01:38]} 30. Rc7+ {[%clk 0:01:27]}  Rxc7 {[%clk 0:01:36]} 31. dxc7 {[%clk 0:01:28]}  Ke7 {[%clk 0:01:29]} 32. b6 {[%clk 0:01:16]}  a4 {[%clk 0:01:17]} 33. Rc1 {[%clk 0:01:09]}  Kd7 {[%clk 0:01:17]} 34. Rd1+ {[%clk 0:01:09]}  Ke7 {[%clk 0:01:17]} 35. Kf2 {[%clk 0:01:04]}  a3 {[%clk 0:01:17]} 36. Kf3 {[%clk 0:01:02]}  a2 {[%clk 0:01:13]} 37. Ke4 {[%clk 0:01:01]}  Ke8 {[%clk 0:00:45]} 38. Kd4 {[%clk 0:00:47]}  Kd7 {[%clk 0:00:40]} 39. Kc5+ {[%clk 0:00:47]}  Ke7 {[%clk 0:00:40]} 40. Kb4 {[%clk 0:00:45]}  Ke8 {[%clk 0:00:19]} 41. Kb3 {[%clk 0:00:44]}  Ke7 {[%clk 0:00:19]} 42. Kb2 {[%clk 0:00:43]}  Ke8 {[%clk 0:00:18]} 43. Ka1 {[%clk 0:00:43]}  Ke7 {[%clk 0:00:18]} 44. Rd2 {[%clk 0:00:43]}  Rc8 {[%clk 0:00:13]} 45. Kxa2 {[%clk 0:00:41]}  g5 {[%clk 0:00:12]} 46. Kb3 {[%clk 0:00:41]}  g4 {[%clk 0:00:13]} 47. Kc4 {[%clk 0:00:36]}  h5 {[%clk 0:00:12]} 48. Kd4 {[%clk 0:00:33]}  Kd7 {[%clk 0:00:10]} 49. Ke4+ {[%clk 0:00:33]}  Ke7 {[%clk 0:00:08]} 50. Kf4 {[%clk 0:00:26]}  Rg8 {[%clk 0:00:04]} 51. Kg3 {[%clk 0:00:24]}  Rf8 {[%clk 0:00:02]} 52. Kh4 {[%clk 0:00:23]}  Rh8 {[%clk 0:00:03]} 53. Rd8 {[%clk 0:00:22]}  Rxd8 {[%clk 0:00:04]} 54. cxd8=Q+ {[%clk 0:00:23]}  Kxd8 {[%clk 0:00:04]} 55. Kxh5 {[%clk 0:00:23]}  Kd7 {[%clk 0:00:05]} 56. Kxg4 {[%clk 0:00:23]}  Kc6 {[%clk 0:00:06]} 57. h4 {[%clk 0:00:24]}  Kxb6 {[%clk 0:00:07]} 58. h5 {[%clk 0:00:24]}  Kc6 {[%clk 0:00:08]} 59. h6 {[%clk 0:00:25]}  Kb6 {[%clk 0:00:09]} 60. h7 {[%clk 0:00:26]} 1-0


[Site "https://www.chess.com"]

[Event "Titled Tuesday Blitz June 21 Early 2022"]
[White "Marn, Jan"]
[Black "Khan, Taffin"]
[WhiteFideId "14619245"]
[BlackFideId "19700024"]
[WhiteElo "2105"]
[BlackElo "2088"]
[Result "1-0"]
[Round "08"]
[TimeControl "180+1"]
[Date "2022.06.21"]
[WhiteClock "0:01:14"]
[BlackClock "0:00:04"]

1. d4 {[%clk 0:02:54]}  Nf6 {[%clk 0:02:59]} 2. c4 {[%clk 0:02:53]}  g6 {[%clk 0:02:56]} 3. Nc3 {[%clk 0:02:52]}  d5 {[%clk 0:02:55]} 4. e3 {[%clk 0:02:41]}  Bg7 {[%clk 0:02:54]} 5. Qb3 {[%clk 0:02:42]}  dxc4 {[%clk 0:02:43]} 6. Bxc4 {[%clk 0:02:40]}  O-O {[%clk 0:02:43]} 7. Nf3 {[%clk 0:02:41]}  c5 {[%clk 0:02:16]} 8. O-O {[%clk 0:02:37]}  Nc6 {[%clk 0:02:13]} 9. Rd1 {[%clk 0:02:01]}  Na5 {[%clk 0:02:02]} 10. Qa4 {[%clk 0:02:02]}  Nxc4 {[%clk 0:01:41]} 11. Qxc4 {[%clk 0:02:03]}  cxd4 {[%clk 0:01:40]} 12. Nxd4 {[%clk 0:02:03]}  Qa5 {[%clk 0:01:37]} 13. e4 {[%clk 0:01:55]}  Bg4 {[%clk 0:01:25]} 14. f3 {[%clk 0:01:55]}  Bd7 {[%clk 0:01:09]} 15. Be3 {[%clk 0:01:49]}  Rac8 {[%clk 0:01:00]} 16. Qe2 {[%clk 0:01:49]}  Rfd8 {[%clk 0:00:57]} 17. a3 {[%clk 0:01:49]}  Be8 {[%clk 0:00:54]} 18. b4 {[%clk 0:01:47]}  Qh5 {[%clk 0:00:41]} 19. Rac1 {[%clk 0:01:45]}  a6 {[%clk 0:00:28]} 20. Qf2 {[%clk 0:01:41]}  Nd7 {[%clk 0:00:19]} 21. Nd5 {[%clk 0:01:39]}  Rxc1 {[%clk 0:00:15]} 22. Rxc1 {[%clk 0:01:40]}  e6 {[%clk 0:00:13]} 23. Nc7 {[%clk 0:01:24]}  Ne5 {[%clk 0:00:08]} 24. Nxe8 {[%clk 0:01:23]}  Nd3 {[%clk 0:00:06]} 25. Qc2 {[%clk 0:01:15]}  Nxc1 {[%clk 0:00:06]} 26. Nxg7 {[%clk 0:01:14]}  Kxg7 {[%clk 0:00:04]} 27. Qxc1 {[%clk 0:01:14]} 1-0


[Site "https://www.chess.com"]

[Event "Titled Tuesday Blitz June 21 Early 2022"]
[White "Mickiewicz, Piotr"]
[Black "Clarke, Brandon G I"]
[WhiteFideId "1114891"]
[BlackFideId "400319"]
[WhiteElo "2209"]
[BlackElo "2414"]
[Result "0-1"]
[Round "08"]
[TimeControl "180+1"]
[Date "2022.06.21"]
[WhiteClock "0:01:02"]
[BlackClock "0:00:25"]

1. e4 {[%clk 0:03:00]}  e6 {[%clk 0:02:57]} 2. d3 {[%clk 0:02:55]}  d5 {[%clk 0:02:58]} 3. Nd2 {[%clk 0:02:55]}  Nf6 {[%clk 0:02:58]} 4. Ngf3 {[%clk 0:02:52]}  Nc6 {[%clk 0:02:59]} 5. c3 {[%clk 0:02:49]}  e5 {[%clk 0:02:59]} 6. Be2 {[%clk 0:02:48]}  a5 {[%clk 0:02:58]} 7. a4 {[%clk 0:02:46]}  Bc5 {[%clk 0:02:58]} 8. O-O {[%clk 0:02:46]}  O-O {[%clk 0:02:59]} 9. Qc2 {[%clk 0:02:45]}  h6 {[%clk 0:02:59]} 10. exd5 {[%clk 0:02:32]}  Qxd5 {[%clk 0:02:57]} 11. Ne4 {[%clk 0:02:30]}  Be7 {[%clk 0:02:52]} 12. Nfd2 {[%clk 0:02:25]}  Nh7 {[%clk 0:02:41]} 13. Nc4 {[%clk 0:02:22]}  f5 {[%clk 0:02:39]} 14. Ng3 {[%clk 0:02:22]}  Be6 {[%clk 0:01:48]} 15. Bf3 {[%clk 0:02:21]}  e4 {[%clk 0:01:48]} 16. Ne3 {[%clk 0:02:10]}  Qxd3 {[%clk 0:01:47]} 17. Qxd3 {[%clk 0:02:06]}  exd3 {[%clk 0:01:48]} 18. Bd5 {[%clk 0:01:47]}  Bxd5 {[%clk 0:01:33]} 19. Nxd5 {[%clk 0:01:48]}  Rad8 {[%clk 0:01:32]} 20. Nxe7+ {[%clk 0:01:45]}  Nxe7 {[%clk 0:01:33]} 21. Bd2 {[%clk 0:01:45]}  f4 {[%clk 0:00:47]} 22. Ne4 {[%clk 0:01:43]}  Nc6 {[%clk 0:00:46]} 23. f3 {[%clk 0:01:37]}  Nf6 {[%clk 0:00:44]} 24. Nxf6+ {[%clk 0:01:29]}  Rxf6 {[%clk 0:00:43]} 25. Rfe1 {[%clk 0:01:30]}  Kf7 {[%clk 0:00:39]} 26. Re4 {[%clk 0:01:29]}  g5 {[%clk 0:00:39]} 27. Rae1 {[%clk 0:01:28]}  Rdd6 {[%clk 0:00:32]} 28. b3 {[%clk 0:01:27]}  Rfe6 {[%clk 0:00:32]} 29. Kf2 {[%clk 0:01:27]}  Rxe4 {[%clk 0:00:32]} 30. Rxe4 {[%clk 0:01:26]}  Re6 {[%clk 0:00:32]} 31. g3 {[%clk 0:01:16]}  Rxe4 {[%clk 0:00:31]} 32. fxe4 {[%clk 0:01:16]}  fxg3+ {[%clk 0:00:32]} 33. hxg3 {[%clk 0:01:13]}  Ne5 {[%clk 0:00:30]} 34. Ke3 {[%clk 0:01:13]}  c5 {[%clk 0:00:26]} 35. c4 {[%clk 0:01:12]}  b6 {[%clk 0:00:24]} 36. Bc3 {[%clk 0:01:12]}  Ke6 {[%clk 0:00:25]} 37. Bb2 {[%clk 0:01:05]}  h5 {[%clk 0:00:24]} 38. Bc3 {[%clk 0:01:04]}  h4 {[%clk 0:00:24]} 39. gxh4 {[%clk 0:01:04]}  gxh4 {[%clk 0:00:24]} 40. Be1 {[%clk 0:01:04]}  h3 {[%clk 0:00:24]} 41. Bg3 {[%clk 0:01:03]}  h2 {[%clk 0:00:24]} 42. Bxh2 {[%clk 0:01:03]}  Ng4+ {[%clk 0:00:24]} 43. Kxd3 {[%clk 0:01:02]}  Nxh2 {[%clk 0:00:25]} 0-1


[Site "https://www.chess.com"]

[Event "Titled Tuesday Blitz June 21 Early 2022"]
[White "Migot, Tangi"]
[Black "Prokofiev, Valentyn"]
[WhiteFideId "662445"]
[BlackFideId "14160161"]
[WhiteElo "2510"]
[BlackElo "2142"]
[Result "0-1"]
[Round "08"]
[TimeControl "180+1"]
[Date "2022.06.21"]
[WhiteClock "0:02:02"]
[BlackClock "0:01:44"]

1. d4 {[%clk 0:03:00]}  Nf6 {[%clk 0:02:59]} 2. c4 {[%clk 0:03:01]}  c5 {[%clk 0:02:54]} 3. d5 {[%clk 0:03:01]}  g6 {[%clk 0:02:54]} 4. Nc3 {[%clk 0:03:01]}  Bg7 {[%clk 0:02:55]} 5. e4 {[%clk 0:03:01]}  d6 {[%clk 0:02:55]} 6. h3 {[%clk 0:03:02]}  O-O {[%clk 0:02:56]} 7. Bd3 {[%clk 0:03:02]}  e6 {[%clk 0:02:56]} 8. Nf3 {[%clk 0:02:59]}  exd5 {[%clk 0:02:56]} 9. exd5 {[%clk 0:03:00]}  Re8+ {[%clk 0:02:56]} 10. Be3 {[%clk 0:03:00]}  Rxe3+ {[%clk 0:02:57]} 11. fxe3 {[%clk 0:03:00]}  Qe7 {[%clk 0:02:57]} 12. e4 {[%clk 0:02:58]}  Nbd7 {[%clk 0:02:57]} 13. O-O {[%clk 0:02:58]}  Nh5 {[%clk 0:02:56]} 14. Qd2 {[%clk 0:02:53]}  Ng3 {[%clk 0:02:56]} 15. Rf2 {[%clk 0:02:54]}  Ne5 {[%clk 0:02:54]} 16. Nxe5 {[%clk 0:02:52]}  Bxe5 {[%clk 0:02:54]} 17. Ne2 {[%clk 0:02:47]}  Qh4 {[%clk 0:02:50]} 18. Rf3 {[%clk 0:02:32]}  Nxe2+ {[%clk 0:02:05]} 19. Qxe2 {[%clk 0:02:20]}  Bg4 {[%clk 0:01:54]} 20. Raf1 {[%clk 0:02:17]}  Bxf3 {[%clk 0:01:54]} 21. Qxf3 {[%clk 0:02:14]}  Rf8 {[%clk 0:01:54]} 22. b3 {[%clk 0:02:13]}  Qg5 {[%clk 0:01:44]} 23. Qg4 {[%clk 0:02:06]}  Qe3+ {[%clk 0:01:43]} 24. Kh1 {[%clk 0:02:02]}  Qxd3 {[%clk 0:01:44]} 0-1


[Site "https://www.chess.com"]

[Event "Titled Tuesday Blitz June 21 Early 2022"]
[White "Mindlin, Alon"]
[Black "Tari, Aryan"]
[WhiteFideId "2800071"]
[BlackFideId "1510045"]
[WhiteElo "2390"]
[BlackElo "2567"]
[Result "1/2-1/2"]
[Round "08"]
[TimeControl "180+1"]
[Date "2022.06.21"]
[WhiteClock "0:00:18"]
[BlackClock "0:00:15"]

1. d4 {[%clk 0:03:00]}  d5 {[%clk 0:02:56]} 2. c4 {[%clk 0:03:00]}  e6 {[%clk 0:02:56]} 3. Nc3 {[%clk 0:03:00]}  c5 {[%clk 0:02:57]} 4. cxd5 {[%clk 0:03:00]}  cxd4 {[%clk 0:02:57]} 5. Qa4+ {[%clk 0:02:52]}  Bd7 {[%clk 0:02:57]} 6. Qxd4 {[%clk 0:02:52]}  exd5 {[%clk 0:02:57]} 7. Nf3 {[%clk 0:02:51]}  Nf6 {[%clk 0:02:25]} 8. Bg5 {[%clk 0:02:42]}  Nc6 {[%clk 0:02:24]} 9. Qd2 {[%clk 0:02:36]}  Bb4 {[%clk 0:02:14]} 10. e3 {[%clk 0:02:32]}  h6 {[%clk 0:02:11]} 11. Bxf6 {[%clk 0:02:31]}  Qxf6 {[%clk 0:02:12]} 12. Be2 {[%clk 0:02:32]}  O-O {[%clk 0:01:58]} 13. Rc1 {[%clk 0:02:23]}  Rad8 {[%clk 0:01:52]} 14. O-O {[%clk 0:02:22]}  Bg4 {[%clk 0:01:49]} 15. a3 {[%clk 0:01:56]}  Bd6 {[%clk 0:01:48]} 16. Nxd5 {[%clk 0:01:48]}  Qg6 {[%clk 0:01:43]} 17. Qc2 {[%clk 0:01:30]}  Qh5 {[%clk 0:01:37]} 18. Nf4 {[%clk 0:01:30]}  Bxf4 {[%clk 0:01:31]} 19. exf4 {[%clk 0:01:31]}  Rfe8 {[%clk 0:01:22]} 20. Rfe1 {[%clk 0:01:30]}  Rxe2 {[%clk 0:01:10]} 21. Qxe2 {[%clk 0:01:25]}  Nd4 {[%clk 0:01:10]} 22. Qe7 {[%clk 0:01:24]}  Nxf3+ {[%clk 0:00:57]} 23. gxf3 {[%clk 0:01:23]}  Bxf3 {[%clk 0:00:39]} 24. Qxd8+ {[%clk 0:00:56]}  Kh7 {[%clk 0:00:39]} 25. Re8 {[%clk 0:00:56]}  Qh3 {[%clk 0:00:28]} 26. Rh8+ {[%clk 0:00:35]}  Kg6 {[%clk 0:00:29]} 27. Rxh6+ {[%clk 0:00:21]}  gxh6 {[%clk 0:00:27]} 28. Qg8+ {[%clk 0:00:21]}  Kf6 {[%clk 0:00:23]} 29. Qh8+ {[%clk 0:00:21]}  Kg6 {[%clk 0:00:17]} 30. Qg8+ {[%clk 0:00:22]}  Kf6 {[%clk 0:00:16]} 31. Qh8+ {[%clk 0:00:21]}  Kg6 {[%clk 0:00:15]} 32. Qg8+ {[%clk 0:00:18]} 1/2-1/2


[Site "https://www.chess.com"]